[Event "RUS-ch Men Rapid 2019"]
[Site "Sochi"]
[Date "2019.10.16"]
[Round "6.4"]
[White "Pridorozhni, Aleksei"]
[Black "Popov, Valerij"]
[Result "1/2-1/2"]
[ECO "C24"]
[WhiteElo "2599"]
[BlackElo "2535"]
[Annotator "ChessBase"]
[PlyCount "88"]
[EventDate "2019.10.15"]
[EventType "swiss"]
[EventCountry "RUS"]
[SourceTitle "playchess.com"]
[Source "ChessBase"]
[SourceQuality "1"]
[TimeControl "900+10"]

1. e4 {[%emt 0:00:00]} e5 {[%emt 0:00:00]} 2. Bc4 {[%emt 0:00:11]} Nf6 {[%emt 0:00:07]} 3. d3 {[%emt 0:00:02]} c6 {[%emt 0:00:54]} 4. Nf3 {[%emt 0:00:03]} d5 {[%emt 0:00:02]} 5. Bb3 {[%emt 0:00:01]} Bd6 {[%emt 0:00:02]} 6. Nc3 {[%emt 0:00:06]} d4 {[%emt 0:02:30]} 7. Ne2 {[%emt 0:00:04]} O-O {[%emt 0:00:18]} 8. O-O {[%emt 0:00:05]} c5 {[%emt 0:00:16]} 9. Ng3 {[%emt 0:00:34]} Nc6 {[%emt 0:00:13]} 10. Nf5 {[%emt 0:01:14]} Be6 {[%emt 0:05:24]} 11. Ng5 {[%emt 0:01:01]} Bxb3 {[%emt 0:00:39]} 12. axb3 {[%emt 0:00:02]} h6 {[%emt 0:00:03]} 13. Nh3 {[%emt 0:00:06]} Kh7 {[%emt 0:01:24]} 14. Bd2 {[%emt 0:01:07]} Bc7 {[%emt 0:00:09]} 15. Qc1 {[%emt 0:01:32]} Ng8 {[%emt 0:00:13]} 16. f4 {[%emt 0:00:03]} g6 {[%emt 0:00:35]} 17. Ng3 {[%emt 0:00:04]} exf4 {[%emt 0:00:05]} 18. Bxf4 {[%emt 0:00:22]} Ne5 {[%emt 0:01:03]} 19. Nf2 {[%emt 0:00:23]} Qh4 {[%emt 0:00:17]} 20. Ne2 {[%emt 0:00:06]} a5 {[%emt 0:00:37]} 21. Bg3 {[%emt 0:00:03]} Qg5 {[%emt 0:00:36]} 22. Nf4 {[%emt 0:00:11]} Qd8 {[%emt 0:00:26]} 23. Nd5 {[%emt 0:00:12]} Bd6 {[%emt 0:00:01]} 24. Qd1 {[%emt 0:00:13]} Ra6 {[%emt 0:00:15]} 25. Ng4 {[%emt 0:00:37]} Nxg4 {[%emt 0:00:07]} 26. Qxg4 {[%emt 0:00:02]} Bxg3 {[%emt 0:00:31]} 27. Qxg3 {[%emt 0:00:02]} f5 {[%emt 0:00:37]} 28. Qc7+ {[%emt 0:02:04]} Qxc7 {[%emt 0:00:15]} 29. Nxc7 {[%emt 0:00:02]} Rc6 {[%emt 0:00:12]} 30. Nd5 {[%emt 0:00:06]} b6 {[%emt 0:00:37]} 31. exf5 {[%emt 0:00:03]} Rxf5 {[%emt 0:00:04]} 32. Rxf5 gxf5 33. Re1 {[%emt 0:00:05]} Rd6 {[%emt 0:00:18]} 34. Nf4 {[%emt 0:00:10]} Kg7 {[%emt 0:00:14]} 35. Re8 {[%emt 0:00:05]} Kf7 {[%emt 0:00:08]} 36. Rb8 {[%emt 0:00:08]} Ne7 {[%emt 0:00:02]} 37. Kf2 {[%emt 0:00:27]} Kf6 {[%emt 0:00:28]} 38. g3 {[%emt 0:00:14]} Kf7 {[%emt 0:00:01]} 39. Rb7 {[%emt 0:00:14]} Kf6 {[%emt 0:00:04]} 40. h4 {[%emt 0:00:04]} Kf7 {[%emt 0:00:08]} 41. h5 {[%emt 0:00:56]} Kf6 {[%emt 0:00:03]} 42. Kf3 {[%emt 0:00:05]} Nc6 {[%emt 0:00:47]} 43. Rh7 {[%emt 0:02:26]} Ne5+ {[%emt 0:00:04]} 44. Ke2 {[%emt 0:00:15]} Nf7 {[%emt 0:00:01]} 1/2-1/2

[Event "RUS-ch Men Rapid 2019"]
[Site "Sochi"]
[Date "2019.10.16"]
[Round "6.5"]
[White "Bocharov, Dmitry"]
[Black "Rozum, Ivan"]
[Result "1/2-1/2"]
[ECO "A21"]
[WhiteElo "2519"]
[BlackElo "2599"]
[Annotator "RC"]
[PlyCount "143"]
[EventDate "2019.10.15"]
[EventType "swiss"]
[EventCountry "RUS"]
[SourceTitle "playchess.com"]
[Source "ChessBase"]
[SourceQuality "1"]
[TimeControl "900+10"]

1. c4 {[%emt 0:00:00]} e5 {[%emt 0:00:00]} 2. Nc3 {[%emt 0:00:00]} Bb4 {[%emt 0:00:02]} 3. Nd5 {[%emt 0:00:06]} Be7 {[%emt 0:00:19]} 4. d4 {[%emt 0:01:02]} d6 {[%emt 0:00:16]} 5. g3 {[%emt 0:00:35]} Nf6 {[%emt 0:01:11]} 6. Bg2 {[%emt 0:00:12]} O-O {[%emt 0:00:12]} 7. e3 {[%emt 0:01:07]} Nxd5 {[%emt 0:00:44]} 8. cxd5 {[%emt 0:00:04]} exd4 {[%emt 0:00:16]} 9. Qxd4 {[%emt 0:00:19]} c5 {[%emt 0:00:03]} 10. dxc6 {[%emt 0:00:17]} bxc6 {[%emt 0:00:39]} 11. Ne2 {[%emt 0:00:02]} Ba6 {[%emt 0:00:11]} 12. Qd2 {[%emt 0:00:03]} Nd7 {[%emt 0:02:37]} 13. O-O {[%emt 0:00:32]} Ne5 {[%emt 0:00:04]} 14. Rd1 {[%emt 0:00:03]} d5 {[%emt 0:00:27]} 15. Qc2 {[%emt 0:01:17]} Bf6 {[%emt 0:00:21]} 16. Nf4 {[%emt 0:00:47]} g6 {[%emt 0:01:29]} 17. Rb1 {[%emt 0:03:17]} Qe7 {[%emt 0:00:03]} 18. h3 {[%emt 0:02:50]} Bc8 {[%emt 0:01:16]} 19. e4 {[%emt 0:00:50]} Rd8 {[%emt 0:00:45]} 20. Be3 {[%emt 0:00:17]} Rb8 {[%emt 0:04:51]} 21. b3 {[%emt 0:00:30]} a5 {[%emt 0:01:17]} 22. Rbc1 {[%emt 0:00:36]} dxe4 {[%emt 0:00:03]} 23. Bc5 {[%emt 0:01:24]} Rxd1+ {[%emt 0:00:20]} 24. Rxd1 {[%emt 0:00:03]} Qe8 {[%emt 0:00:03]} 25. Bxe4 {[%emt 0:00:23]} Ba6 {[%emt 0:00:16]} 26. Bg2 {[%emt 0:01:19]} Rd8 {[%emt 0:00:07]} 27. Bb6 {[%emt 0:00:08]} Rxd1+ {[%emt 0:00:06]} 28. Qxd1 {[%emt 0:00:01]} a4 {[%emt 0:00:09]} 29. bxa4 {[%emt 0:00:07]} Nc4 {[%emt 0:00:23]} 30. a5 {[%emt 0:00:23]} Nxb6 {[%emt 0:00:56]} 31. axb6 {[%emt 0:00:03]} Qb8 {[%emt 0:00:03]} 32. Bxc6 {[%emt 0:00:57]} Qxb6 {[%emt 0:00:06]} 33. Bd5 {[%emt 0:00:00]} Bd4 {[%emt 0:00:13]} 34. Qf3 {[%emt 0:00:00]} Qb1+ {[%emt 0:00:29]} 35. Kh2 {[%emt 0:00:30]} Qf5 {[%emt 0:00:07]} 36. Kg2 Bc8 37. h4 {[%emt 0:00:21]} Kg7 {[%emt 0:00:13]} 38. a4 {[%emt 0:00:05]} Bb6 {[%emt 0:00:15]} 39. Qc3+ {[%emt 0:00:17]} Kg8 {[%emt 0:00:09]} 40. Qc6 {[%emt 0:00:04]} Bd4 {[%emt 0:00:13]} 41. a5 {[%emt 0:00:04]} Bd7 {[%emt 0:00:06]} 42. Qc4 {[%emt 0:00:07]} Be5 {[%emt 0:00:13]} 43. a6 {[%emt 0:00:32]} Bb8 {[%emt 0:00:03]} 44. Bc6 {[%emt 0:00:15]} Be6 {[%emt 0:00:19]} 45. Nxe6 {[%emt 0:00:09]} Qxe6 {[%emt 0:00:01]} 46. Bd5 {[%emt 0:00:03]} Qd7 {[%emt 0:00:18]} 47. Qd4 {[%emt 0:00:30]} Ba7 {[%emt 0:00:02]} 48. Qe5 {[%emt 0:00:02]} h5 {[%emt 0:00:15]} 49. Kg1 {[%emt 0:00:14]} Qd8 {[%emt 0:00:07]} 50. Bb3 {[%emt 0:00:08]} Qb8 {[%emt 0:00:13]} 51. Qc3 {[%emt 0:00:11]} Qb6 {[%emt 0:00:07]} 52. Qf3 {[%emt 0:00:02]} Qc7 {[%emt 0:00:12]} 53. Kg2 {[%emt 0:00:05]} Kg7 {[%emt 0:00:03]} 54. Qe4 {[%emt 0:00:17]} Qb6 {[%emt 0:00:22]} 55. Qf3 {[%emt 0:00:12]} Qf6 {[%emt 0:00:05]} 56. Qxf6+ {[%emt 0:00:18]} Kxf6 {[%emt 0:00:00]} 57. f4 {[%emt 0:00:01]} Ke7 {[%emt 0:00:33]} 58. Kf3 {[%emt 0:00:05]} f5 {[%emt 0:00:09]} 59. Ke2 {[%emt 0:00:01]} Bb6 {[%emt 0:00:04]} 60. Kd3 {[%emt 0:00:07]} Bf2 {[%emt 0:00:02]} 61. Bg8 {[%emt 0:00:21]} Ke8 {[%emt 0:00:18]} 62. Ke2 {[%emt 0:00:25]} Bb6 {[%emt 0:00:02]} 63. Kd3 {[%emt 0:00:10]} Bf2 {[%emt 0:00:01]} 64. Kc4 {[%emt 0:00:01]} Kd7 {[%emt 0:00:22]} 65. Kd5 {[%emt 0:00:21]} Kc7 {[%emt 0:00:01]} 66. Ke5 {[%emt 0:00:11]} Bxg3 {[%emt 0:00:01]} 67. Bf7 {[%emt 0:00:01]} Bxh4 {[%emt 0:00:04]} 68. Bxg6 {[%emt 0:00:03]} Kb6 {[%emt 0:00:03]} 69. Kxf5 {[%emt 0:00:02]} Kxa6 {[%emt 0:00:02]} 70. Bxh5 {[%emt 0:00:01]} Bg3 {[%emt 0:00:01]} 71. Ke4 {[%emt 0:00:03]} Bxf4 {[%emt 0:00:01]} 72. Kxf4 {[%emt 0:00:01]} 1/2-1/2

[Event "RUS-ch Men Rapid 2019"]
[Site "Sochi"]
[Date "2019.10.16"]
[Round "6.6"]
[White "Antipov, Mikhail Al."]
[Black "Goryachkina, Aleksandra"]
[Result "1-0"]
[ECO "C07"]
[WhiteElo "2567"]
[BlackElo "2575"]
[Annotator "RC"]
[PlyCount "77"]
[EventDate "2019.10.15"]
[EventType "swiss"]
[EventCountry "RUS"]
[SourceTitle "playchess.com"]
[Source "ChessBase"]
[SourceQuality "1"]
[TimeControl "900+10"]

1. e4 {[%emt 0:00:00]} e6 {[%emt 0:00:00]} 2. d4 {[%emt 0:00:00]} d5 {[%emt 0:00:00]} 3. Nd2 {[%emt 0:00:00]} c5 {[%emt 0:00:00]} 4. Ngf3 {[%emt 0:00:00]} cxd4 {[%emt 0:00:08]} 5. exd5 {[%emt 0:00:00]} Qxd5 {[%emt 0:00:03]} 6. Bc4 {[%emt 0:00:00]} Qd7 {[%emt 0:00:08]} 7. O-O {[%emt 0:00:01]} Nc6 {[%emt 0:00:03]} 8. Nb3 {[%emt 0:00:03]} a6 {[%emt 0:00:03]} 9. a4 {[%emt 0:00:01]} Nf6 {[%emt 0:00:38]} 10. Qe2 {[%emt 0:00:01]} Bd6 {[%emt 0:00:17]} 11. Rd1 {[%emt 0:00:02]} O-O {[%emt 0:00:22]} 12. Nbxd4 {[%emt 0:00:05]} e5 {[%emt 0:00:22]} 13. Nxc6 {[%emt 0:00:02]} Qxc6 {[%emt 0:00:02]} 14. Bg5 {[%emt 0:00:03]} Bc7 {[%emt 0:00:02]} 15. Ra3 {[%emt 0:00:50]} Be6 {[%emt 0:04:16]} 16. Bxe6 {[%emt 0:04:07]} Qxe6 {[%emt 0:00:02]} 17. Rc3 {[%emt 0:00:03]} Rac8 {[%emt 0:03:30]} 18. Bxf6 {[%emt 0:02:22]} Qxf6 {[%emt 0:00:08]} 19. Qe4 {[%emt 0:00:01]} Qe7 {[%emt 0:01:59]} 20. Rcd3 {[%emt 0:02:56]} Rcd8 {[%emt 0:03:07]} 21. Rxd8 {[%emt 0:06:10]} Rxd8 {[%emt 0:00:02]} 22. Rxd8+ {[%emt 0:00:01]} Qxd8 {[%emt 0:00:01]} 23. g3 {[%emt 0:00:00]} Qe8 {[%emt 0:02:20]} 24. Qxb7 {[%emt 0:01:07]} Bb8 {[%emt 0:00:36]} 25. Qxa6 {[%emt 0:00:17]} e4 {[%emt 0:00:05]} 26. Ne1 {[%emt 0:00:53]} e3 {[%emt 0:00:09]} 27. fxe3 {[%emt 0:00:04]} Qxe3+ {[%emt 0:00:05]} 28. Kf1 {[%emt 0:00:01]} Qe8 {[%emt 0:00:26]} 29. Qb7 {[%emt 0:00:14]} h5 {[%emt 0:00:28]} 30. a5 {[%emt 0:00:04]} h4 {[%emt 0:00:17]} 31. gxh4 {[%emt 0:00:25]} Bxh2 {[%emt 0:00:17]} 32. a6 {[%emt 0:00:01]} Qe3 {[%emt 0:00:10]} 33. a7 {[%emt 0:00:20]} Qg1+ {[%emt 0:00:02]} 34. Ke2 {[%emt 0:00:01]} Qg4+ {[%emt 0:00:02]} 35. Kd3 {[%emt 0:00:17]} Qd1+ {[%emt 0:00:17]} 36. Kc4 {[%emt 0:00:01]} Qe2+ {[%emt 0:00:19]} 37. Kb3 {[%emt 0:00:01]} Qe6+ {[%emt 0:00:03]} 38. c4 {[%emt 0:00:01]} Qe3+ {[%emt 0:00:16]} 39. Ka2 {[%emt 0:00:01]} 1-0

[Event "RUS-ch Men Rapid 2019"]
[Site "Sochi"]
[Date "2019.10.16"]
[Round "6.9"]
[White "Nesterov, Arseniy"]
[Black "Triapishko, Alexandr"]
[Result "1-0"]
[ECO "A37"]
[WhiteElo "2484"]
[BlackElo "2514"]
[Annotator "RC"]
[PlyCount "145"]
[EventDate "2019.10.15"]
[EventType "swiss"]
[EventCountry "RUS"]
[SourceTitle "playchess.com"]
[Source "ChessBase"]
[SourceQuality "1"]
[TimeControl "900+10"]

1. Nf3 {[%emt 0:00:00]} c5 {[%emt 0:02:47]} 2. c4 {[%emt 0:00:09]} Nc6 {[%emt 0:00:16]} 3. Nc3 {[%emt 0:00:02]} g6 {[%emt 0:03:54]} 4. g3 {[%emt 0:00:08]} Bg7 {[%emt 0:00:07]} 5. Bg2 {[%emt 0:00:02]} e5 {[%emt 0:01:15]} 6. d3 {[%emt 0:00:28]} d6 {[%emt 0:00:54]} 7. O-O {[%emt 0:04:43]} Nge7 {[%emt 0:00:04]} 8. a3 {[%emt 0:00:05]} O-O {[%emt 0:00:27]} 9. Rb1 {[%emt 0:00:01]} a5 {[%emt 0:01:46]} 10. Ne1 {[%emt 0:00:12]} Be6 {[%emt 0:00:46]} 11. Nd5 {[%emt 0:01:26]} a4 {[%emt 0:02:31]} 12. b4 {[%emt 0:00:09]} axb3 {[%emt 0:00:47]} 13. Rxb3 {[%emt 0:00:05]} Ra7 {[%emt 0:00:05]} 14. Nxe7+ {[%emt 0:00:11]} Qxe7 {[%emt 0:00:21]} 15. Nc2 {[%emt 0:00:05]} f5 {[%emt 0:00:37]} 16. Ne3 {[%emt 0:00:13]} Nd4 {[%emt 0:00:14]} 17. Rb1 {[%emt 0:00:07]} Rb8 {[%emt 0:00:34]} 18. Nd5 {[%emt 0:00:07]} Qd8 {[%emt 0:00:10]} 19. e3 {[%emt 0:00:56]} Nc6 {[%emt 0:00:00]} 20. Rb5 {[%emt 0:00:41]} Ne7 {[%emt 0:00:08]} 21. Nxe7+ {[%emt 0:00:12]} Qxe7 {[%emt 0:00:01]} 22. Qb3 {[%emt 0:00:07]} e4 {[%emt 0:00:22]} 23. dxe4 {[%emt 0:00:22]} Qf7 {[%emt 0:00:07]} 24. exf5 {[%emt 0:00:47]} Bxc4 {[%emt 0:00:15]} 25. fxg6 {[%emt 0:00:03]} hxg6 {[%emt 0:00:04]} 26. Qd1 {[%emt 0:00:48]} Ra6 {[%emt 0:00:20]} 27. Rb1 {[%emt 0:00:40]} Kh7 {[%emt 0:00:24]} 28. Re1 {[%emt 0:00:23]} b5 {[%emt 0:00:10]} 29. e4 {[%emt 0:02:02]} Ba2 {[%emt 0:00:09]} 30. Rb2 {[%emt 0:00:14]} b4 {[%emt 0:00:12]} 31. axb4 {[%emt 0:00:59]} Bxb2 {[%emt 0:00:06]} 32. Bxb2 {[%emt 0:00:03]} Rxb4 {[%emt 0:00:01]} 33. Qd2 {[%emt 0:00:22]} Rab6 {[%emt 0:00:02]} 34. Bc1 {[%emt 0:00:25]} Rb1 {[%emt 0:00:17]} 35. e5 {[%emt 0:00:18]} dxe5 {[%emt 0:00:14]} 36. Qh6+ {[%emt 0:00:40]} Kg8 {[%emt 0:00:01]} 37. Rd1 {[%emt 0:00:03]} Rxc1 {[%emt 0:00:27]} 38. Rxc1 {[%emt 0:00:21]} Rb1 {[%emt 0:00:12]} 39. Rxb1 {[%emt 0:00:24]} Bxb1 {[%emt 0:00:01]} 40. Qc1 {[%emt 0:00:01]} Bf5 {[%emt 0:00:18]} 41. Qxc5 {[%emt 0:00:03]} Qf6 {[%emt 0:00:07]} 42. h4 {[%emt 0:00:17]} Kg7 {[%emt 0:00:12]} 43. Bd5 {[%emt 0:00:08]} Kh6 {[%emt 0:00:13]} 44. f3 {[%emt 0:00:17]} g5 {[%emt 0:00:07]} 45. Qe3 {[%emt 0:00:35]} Kg6 {[%emt 0:00:11]} 46. g4 {[%emt 0:00:34]} Bc2 {[%emt 0:00:12]} 47. Be4+ {[%emt 0:01:28]} Bxe4 {[%emt 0:00:01]} 48. Qxe4+ {[%emt 0:00:01]} Kg7 {[%emt 0:00:14]} 49. h5 {[%emt 0:00:01]} Qd6 {[%emt 0:00:14]} 50. Kg2 {[%emt 0:00:29]} Kh6 {[%emt 0:00:12]} 51. Kh3 {[%emt 0:00:08]} Qf6 {[%emt 0:00:07]} 52. Qf5 {[%emt 0:00:21]} Qd6 {[%emt 0:00:01]} 53. Qe4 {[%emt 0:00:10]} Kg7 {[%emt 0:00:13]} 54. Kg2 {[%emt 0:00:10]} Qd2+ {[%emt 0:00:09]} 55. Kh3 {[%emt 0:00:04]} Qd6 {[%emt 0:00:02]} 56. Qb7+ {[%emt 0:00:06]} Kh6 {[%emt 0:00:09]} 57. Qa8 {[%emt 0:00:01]} Kg7 {[%emt 0:00:11]} 58. Qe8 {[%emt 0:00:04]} Qf6 {[%emt 0:00:09]} 59. Kg2 {[%emt 0:00:15]} Qd6 {[%emt 0:00:03]} 60. h6+ {[%emt 0:00:28]} Qxh6 {[%emt 0:00:18]} 61. Qe7+ {[%emt 0:00:07]} Kg8 {[%emt 0:00:05]} 62. Qxe5 {[%emt 0:00:02]} Qg6 {[%emt 0:00:25]} 63. Kf2 {[%emt 0:00:19]} Qc2+ {[%emt 0:00:16]} 64. Ke3 {[%emt 0:00:01]} Qc1+ {[%emt 0:00:08]} 65. Ke4 {[%emt 0:00:06]} Qc2+ {[%emt 0:00:09]} 66. Kd5 {[%emt 0:00:12]} Qd2+ {[%emt 0:00:15]} 67. Ke6 {[%emt 0:00:04]} Kh7 {[%emt 0:00:09]} 68. Kf6 {[%emt 0:00:12]} Kh6 {[%emt 0:00:22]} 69. Ke6 Kh7 70. Kf6 Kh6 71. Qe4 Qd6+ {Qe5 Qd2} 72. Kf7 Qd7+ 73. Kf6 1-0

[Event "RUS-ch Men Rapid 2019"]
[Site "Sochi"]
[Date "2019.10.16"]
[Round "6.10"]
[White "Apryshko, Gleb"]
[Black "Savchenko, Boris"]
[Result "1-0"]
[ECO "A00"]
[WhiteElo "2382"]
[BlackElo "2581"]
[Annotator "RC"]
[PlyCount "73"]
[EventDate "2019.10.15"]
[EventType "swiss"]
[EventCountry "RUS"]
[SourceTitle "playchess.com"]
[Source "ChessBase"]
[SourceQuality "1"]
[TimeControl "900+10"]

1. g3 {[%emt 0:00:00]} d5 {[%emt 0:01:09]} 2. Bg2 {[%emt 0:00:00]} Nc6 {[%emt 0:00:02]} 3. d3 {[%emt 0:00:12]} e5 {[%emt 0:00:03]} 4. a3 {[%emt 0:00:08]} f5 {[%emt 0:00:03]} 5. b4 {[%emt 0:01:14]} Be6 {[%emt 0:01:10]} 6. Bb2 {[%emt 0:00:20]} Bd6 {[%emt 0:00:16]} 7. Nd2 {[%emt 0:04:43]} Nf6 {[%emt 0:01:50]} 8. c4 {[%emt 0:00:15]} dxc4 {[%emt 0:00:29]} 9. Nxc4 {[%emt 0:00:07]} Bxc4 {[%emt 0:00:02]} 10. Bxc6+ {[%emt 0:00:06]} bxc6 {[%emt 0:00:03]} 11. dxc4 {[%emt 0:00:02]} c5 {[%emt 0:00:42]} 12. Nf3 {[%emt 0:01:23]} cxb4 {[%emt 0:01:06]} 13. Qa4+ {[%emt 0:00:03]} Nd7 {[%emt 0:03:50]} 14. axb4 {[%emt 0:00:06]} e4 {[%emt 0:00:40]} 15. Nd4 {[%emt 0:00:37]} Qf6 {[%emt 0:00:07]} 16. Rd1 {[%emt 0:03:41]} c6 {[%emt 0:02:35]} 17. Ba1 {[%emt 0:02:35]} O-O {[%emt 0:02:40]} 18. c5 {[%emt 0:00:03]} Be5 {[%emt 0:00:23]} 19. Qxc6 {[%emt 0:00:03]} Qf7 {[%emt 0:00:13]} 20. Ne6 {[%emt 0:00:17]} Bxa1 {[%emt 0:00:15]} 21. Rxd7 {[%emt 0:00:30]} Qf6 {[%emt 0:00:06]} 22. O-O {[%emt 0:00:44]} Rfe8 {[%emt 0:00:05]} 23. Rd6 {[%emt 0:00:46]} Be5 {[%emt 0:00:04]} 24. Nc7 {[%emt 0:00:03]} Qf7 {[%emt 0:00:34]} 25. Nxe8 {[%emt 0:00:08]} Rxe8 {[%emt 0:00:01]} 26. Rd7 {[%emt 0:00:04]} Qf8 {[%emt 0:00:02]} 27. Qd5+ {[%emt 0:00:24]} Kh8 {[%emt 0:00:02]} 28. Rf7 {[%emt 0:00:02]} Qg8 {[%emt 0:00:00]} 29. Rd1 {[%emt 0:00:01]} f4 {[%emt 0:00:57]} 30. gxf4 {[%emt 0:00:37]} Bc3 {[%emt 0:00:02]} 31. Rxa7 {[%emt 0:00:23]} Qf8 {[%emt 0:00:02]} 32. Rf7 {[%emt 0:00:03]} Qg8 {[%emt 0:00:01]} 33. Rb7 {[%emt 0:00:31]} Qf8 {[%emt 0:00:02]} 34. Qf7 {[%emt 0:00:06]} Qxf7 {[%emt 0:00:02]} 35. Rxf7 {[%emt 0:00:02]} Bxb4 {[%emt 0:00:02]} 36. c6 {[%emt 0:00:16]} Ba5 {[%emt 0:00:01]} 37. Rdd7 {[%emt 0:00:07]} 1-0

[Event "RUS-ch Men Rapid 2019"]
[Site "Sochi"]
[Date "2019.10.16"]
[Round "6.14"]
[White "Sakaev, Konstantin"]
[Black "Jary, Sergey"]
[Result "1-0"]
[ECO "D85"]
[WhiteElo "2595"]
[BlackElo "2275"]
[Annotator "ChessBase"]
[PlyCount "67"]
[EventDate "2019.10.15"]
[EventType "swiss"]
[EventCountry "RUS"]
[SourceTitle "playchess.com"]
[Source "ChessBase"]
[SourceQuality "1"]
[TimeControl "900+10"]

1. d4 {[%emt 0:00:00]} Nf6 {[%emt 0:00:00]} 2. c4 {[%emt 0:00:00]} g6 {[%emt 0:00:00]} 3. Nc3 {[%emt 0:00:00]} d5 {[%emt 0:00:01]} 4. cxd5 {[%emt 0:00:00]} Nxd5 {[%emt 0:00:01]} 5. e4 {[%emt 0:00:00]} Nb6 {[%emt 0:00:01]} 6. Be3 {[%emt 0:01:40]} Bg7 {[%emt 0:00:14]} 7. Qd2 {[%emt 0:00:06]} O-O {[%emt 0:00:36]} 8. O-O-O {[%emt 0:00:21]} Nc6 {[%emt 0:00:14]} 9. h4 {[%emt 0:00:47]} h5 {[%emt 0:00:40]} 10. f3 {[%emt 0:01:58]} f5 {[%emt 0:00:21]} 11. e5 {[%emt 0:00:43]} Nb4 {[%emt 0:01:14]} 12. Nh3 {[%emt 0:00:19]} N4d5 {[%emt 0:00:15]} 13. Nxd5 {[%emt 0:04:29]} Nxd5 {[%emt 0:00:22]} 14. Bc4 {[%emt 0:00:06]} b5 {[%emt 0:00:04]} 15. Bxb5 {[%emt 0:00:40]} Nxe3 {[%emt 0:01:39]} 16. Qxe3 {[%emt 0:00:01]} Qd5 {[%emt 0:00:46]} 17. Qb3 {[%emt 0:01:47]} Be6 {[%emt 0:00:29]} 18. Qxd5 {[%emt 0:00:02]} Bxd5 {[%emt 0:00:01]} 19. Kb1 {[%emt 0:00:02]} Rab8 {[%emt 0:00:12]} 20. Ba4 {[%emt 0:01:08]} Bh6 {[%emt 0:00:10]} 21. Rd3 {[%emt 0:00:30]} Rb4 {[%emt 0:00:03]} 22. Bb3 {[%emt 0:00:02]} Bxb3 {[%emt 0:00:42]} 23. axb3 {[%emt 0:00:01]} Rfb8 {[%emt 0:00:01]} 24. Kc2 {[%emt 0:00:14]} R8b5 {[%emt 0:00:27]} 25. Ra1 {[%emt 0:00:43]} a5 {[%emt 0:00:21]} 26. Ra4 {[%emt 0:00:02]} Rd5 {[%emt 0:00:20]} 27. f4 {[%emt 0:00:54]} Kf7 {[%emt 0:00:57]} 28. g3 {[%emt 0:00:12]} Ke6 {[%emt 0:00:50]} 29. Ng1 {[%emt 0:00:55]} c5 {[%emt 0:00:36]} 30. Ne2 {[%emt 0:00:48]} cxd4 {[%emt 0:00:57]} 31. Rxd4 {[%emt 0:00:55]} Rc5+ {[%emt 0:03:21]} 32. Nc3 {[%emt 0:00:02]} Rb7 {[%emt 0:01:12]} 33. Rdc4 {[%emt 0:00:06]} Rxc4 {[%emt 0:00:11]} 34. bxc4 {[%emt 0:00:22] Kd5} 1-0

[Event "RUS-ch Men Rapid 2019"]
[Site "Sochi"]
[Date "2019.10.16"]
[Round "6.15"]
[White "Nozdrachev, Vladislav"]
[Black "Tekeyev, Zaur"]
[Result "0-1"]
[ECO "B31"]
[WhiteElo "2494"]
[BlackElo "2384"]
[Annotator "RC"]
[PlyCount "88"]
[EventDate "2019.10.15"]
[EventType "swiss"]
[EventCountry "RUS"]
[SourceTitle "playchess.com"]
[Source "ChessBase"]
[SourceQuality "1"]
[TimeControl "900+10"]

1. e4 {[%emt 0:00:00]} c5 {[%emt 0:01:03]} 2. Nf3 {[%emt 0:00:00]} Nc6 {[%emt 0:00:01]} 3. Bb5 {[%emt 0:00:01]} g6 {[%emt 0:00:02]} 4. O-O {[%emt 0:00:03]} Bg7 {[%emt 0:00:01]} 5. Re1 {[%emt 0:00:02]} e5 {[%emt 0:00:01]} 6. Bxc6 {[%emt 0:00:02]} dxc6 {[%emt 0:00:01]} 7. d3 {[%emt 0:00:02]} Qe7 {[%emt 0:00:02]} 8. a4 {[%emt 0:00:14]} Nf6 {[%emt 0:01:05]} 9. Bg5 {[%emt 0:00:24]} h6 {[%emt 0:00:34]} 10. Be3 {[%emt 0:00:02]} O-O {[%emt 0:01:53]} 11. a5 {[%emt 0:00:46]} c4 {[%emt 0:03:52]} 12. Qc1 {[%emt 0:02:36]} Kh7 {[%emt 0:03:11]} 13. d4 {[%emt 0:00:20]} Ng4 {[%emt 0:01:03]} 14. dxe5 {[%emt 0:00:13]} Nxe5 {[%emt 0:00:12]} 15. Nxe5 {[%emt 0:00:05]} Qxe5 {[%emt 0:00:02]} 16. c3 {[%emt 0:02:04]} Be6 {[%emt 0:02:33]} 17. Bd4 {[%emt 0:00:02]} Qh5 {[%emt 0:00:18]} 18. Bxg7 {[%emt 0:00:21]} Kxg7 {[%emt 0:00:01]} 19. Nd2 {[%emt 0:00:02]} Rad8 {[%emt 0:00:04]} 20. Nf3 {[%emt 0:00:42]} c5 {[%emt 0:00:07]} 21. Qf4 {[%emt 0:00:22]} Rd3 {[%emt 0:00:20]} 22. Ne5 {[%emt 0:01:11]} g5 {[%emt 0:00:33]} 23. Qc1 {[%emt 0:00:07]} Rd6 {[%emt 0:00:23]} 24. Qe3 {[%emt 0:00:44]} b6 {[%emt 0:00:01]} 25. axb6 {[%emt 0:01:09]} axb6 {[%emt 0:00:01]} 26. h3 {[%emt 0:00:24]} Qh4 {[%emt 0:00:33]} 27. g4 {[%emt 0:00:57]} Rfd8 {[%emt 0:00:38]} 28. Kg2 {[%emt 0:00:29]} Rd3 {[%emt 0:00:29]} 29. Nxd3 {[%emt 0:00:06]} Rxd3 {[%emt 0:00:03]} 30. Qg3 {[%emt 0:00:03]} Qxg3+ {[%emt 0:00:18]} 31. fxg3 {[%emt 0:00:02]} Rd2+ {[%emt 0:00:03]} 32. Kf3 {[%emt 0:00:15]} Rxb2 {[%emt 0:00:02]} 33. Rab1 {[%emt 0:00:02]} Rb3 {[%emt 0:00:27]} 34. Rec1 {[%emt 0:00:30]} Kf6 {[%emt 0:00:12]} 35. Ke3 {[%emt 0:00:15]} b5 {[%emt 0:00:16]} 36. Kd2 {[%emt 0:01:18]} Ke5 {[%emt 0:00:05]} 37. Ke3 {[%emt 0:00:01]} b4 {[%emt 0:00:11]} 38. Rxb3 {[%emt 0:00:07]} cxb3 {[%emt 0:00:02]} 39. cxb4 {[%emt 0:00:07]} c4 {[%emt 0:00:24]} 40. Rb1 {[%emt 0:00:59]} Bd7 {[%emt 0:00:17]} 41. Ra1 {[%emt 0:01:06]} Bb5 {[%emt 0:00:14]} 42. Rb1 {[%emt 0:01:24]} Bc6 {[%emt 0:00:08]} 43. Ra1 {[%emt 0:00:33]} b2 {[%emt 0:00:09]} 44. Re1 {[%emt 0:00:26]} Bxe4 {[%emt 0:00:10] Kd4+} 0-1